fUST/lending_fUST_20260527
["ID","MTS","AMOUNT","RATE_DAILY","PERIOD"]
[423109399,1779856247000,-500.0,8.767e-05,2]
[423109413,1779856247000,-1570.82351694,8.767e-05,2]
[423109415,1779856247000,-423.83834558,8.767e-05,2]
[423109403,1779856247000,-500.0,8.767e-05,2]
[423109429,1779856247000,-244.0,8.957e-05,2]
[423109418,1779856247000,-500.0,8.767e-05,2]
[423109420,1779856247000,-390.63,8.767e-05,2]
[423109445,1779856247000,-196.222,9.041e-05,2]
[423109443,1779856247000,-563.64,9.041e-05,2]
[423109441,1779856247000,-500.0,9.041e-05,2]
[423109439,1779856247000,-500.0,9.041e-05,2]
[423109437,1779856247000,-500.0,9.041e-05,2]
[423109431,1779856247000,-500.0,9.041e-05,2]
[423109425,1779856247000,-435.08650861,8.767e-05,2]
[423109511,1779856247000,-285.87845477,9.315e-05,2]
[423109421,1779856247000,-389.70813748,8.767e-05,2]
[423109417,1779856247000,-500.0,8.767e-05,2]
[423109435,1779856247000,-500.0,9.041e-05,2]
[423109433,1779856247000,-500.0,9.041e-05,2]
[423109427,1779856247000,-1000.0,8.957e-05,2]
[423109452,1779856247000,-500.0,9.041e-05,2]
[423110908,1779856260000,152.0,0.00014354,30]
[423110910,1779856536000,-5000.0,5.935e-05,2]
[423110911,1779856536000,-5000.0,5.995e-05,2]
[423110912,1779856539000,-5000.0,5.876e-05,2]
[423110913,1779856548000,-442.74928345,5.964e-05,2]
[423110914,1779856567000,-5000.0,5.964e-05,2]
[423110915,1779856583000,2817.27941438,6e-05,2]
[423110916,1779856643000,-4055.58211673,5.965e-05,2]
[423110929,1779857044000,-768.8154021,6.816e-05,2]
[423110930,1779857044000,-1877.5466517,6.994e-05,2]
[423110928,1779857044000,-380.66135125,6.421e-05,2]
[423110926,1779857044000,-173.1236409,6.293e-05,2]
[423110927,1779857044000,-5000.0,6.357e-05,2]
[423110925,1779857044000,-763.8763591,6.23e-05,2]
[423110931,1779857051000,-3722.97659495,7.396e-05,2]
[423110932,1779857146000,152.0,0.00014413,30]
[423111116,1779857434000,-5000.0,7.105e-05,2]
[423111117,1779857434000,-1476.53964029,7.177e-05,2]
[423111187,1779857438000,-1754.00211669,7.177e-05,2]
[423111241,1779857439000,-500.0,7.918e-05,2]
[423111221,1779857439000,-500.0,7.918e-05,2]
[423111229,1779857439000,-500.0,7.918e-05,2]
[423111227,1779857439000,-500.0,7.918e-05,2]
[423111223,1779857439000,-500.0,7.918e-05,2]
[423111225,1779857439000,-500.0,7.918e-05,2]
[423111219,1779857439000,-500.0,7.918e-05,2]
[423111205,1779857439000,-373.04812422,7.213e-05,2]
[423111236,1779857439000,-500.0,7.918e-05,2]
[423111214,1779857439000,-500.0,7.248e-05,2]
[423111212,1779857439000,-500.0,7.248e-05,2]
[423111207,1779857439000,-500.0,7.248e-05,2]
[423111208,1779857439000,-527.76062701,7.248e-05,2]
[423111210,1779857439000,-500.0,7.248e-05,2]
[423111203,1779857439000,-1769.45824302,7.177e-05,2]
[423111217,1779857439000,-300.0,7.504e-05,2]
[423111233,1779857439000,-500.0,7.918e-05,2]
[423111215,1779857439000,-474.34194359,7.248e-05,2]
[423111237,1779857439000,-500.0,7.918e-05,2]
[423111270,1779857439000,-44375.3966804,8.019e-05,2]
[423111268,1779857439000,-2923.86707462,8.019e-05,2]
[423111251,1779857439000,-500.0,7.918e-05,2]
[423111261,1779857439000,-369.82115202,7.918e-05,2]
[423111264,1779857439000,-22956.07275395,7.919e-05,2]
[423111255,1779857439000,-500.0,7.918e-05,2]
[423111263,1779857439000,-500.0,7.918e-05,2]
[423111249,1779857439000,-500.0,7.918e-05,2]
[423111243,1779857439000,-500.0,7.918e-05,2]
[423111266,1779857439000,-3154.57521728,8.019e-05,2]
[423111259,1779857439000,-500.0,7.918e-05,2]
[423111257,1779857439000,-500.0,7.918e-05,2]
[423111253,1779857439000,-500.0,7.918e-05,2]
[423111247,1779857439000,-500.0,7.918e-05,2]
[423111239,1779857439000,-500.0,7.918e-05,2]
[423111245,1779857439000,-500.0,7.918e-05,2]
[423111231,1779857439000,-500.0,7.918e-05,2]
[423111514,1779857441000,-3865.52177311,8.019e-05,2]
[423111779,1779857444000,-10260.76468092,8.019e-05,2]
[423111781,1779857444000,-398.77670356,8.019e-05,2]
[423111780,1779857444000,-4574.14783359,8.019e-05,2]
[423111788,1779857447000,-16431.9311721,8.019e-05,2]
[423111787,1779857447000,-402.73695866,7.919e-05,2]
[423111789,1779857455000,5008.71,0.00015,30]
[423111814,1779857794000,152.0,0.00014415,30]
[423111897,1779858508000,1144.49,0.00015,30]
[423111969,1779858631000,-500.0,7.818e-05,2]
[423111965,1779858631000,-500.0,7.818e-05,2]
[423111963,1779858631000,-500.0,7.818e-05,2]
[423111959,1779858631000,-500.0,7.817e-05,2]
[423111961,1779858631000,-413.34964588,7.817e-05,2]
[423111946,1779858631000,-4486.99758934,6.283e-05,2]
[423111955,1779858631000,-177.90680227,7.817e-05,2]
[423111957,1779858631000,-500.0,7.817e-05,2]
[423111949,1779858631000,-376.20716174,6.573e-05,2]
[423111953,1779858631000,-221.2609558,6.946e-05,2]
[423111951,1779858631000,-250.0,6.878e-05,2]
[423111939,1779858631000,-513.00241066,6.283e-05,2]
[423111948,1779858631000,-872.56636422,6.346e-05,2]
[423111981,1779858631000,-500.0,7.818e-05,2]
[423111967,1779858631000,-500.0,7.818e-05,2]
[423111993,1779858631000,-439.5105625,7.818e-05,2]
[423111971,1779858631000,-500.0,7.818e-05,2]
[423111977,1779858631000,-500.0,7.818e-05,2]
[423111997,1779858631000,-60.4894375,7.818e-05,2]
[423111973,1779858631000,-500.0,7.818e-05,2]
[423111979,1779858631000,-500.0,7.818e-05,2]
[423111984,1779858631000,-500.0,7.818e-05,2]
[423111975,1779858631000,-500.0,7.818e-05,2]
[423111992,1779858631000,-500.0,7.818e-05,2]
[423111989,1779858631000,-500.0,7.818e-05,2]
[423111987,1779858631000,-500.0,7.818e-05,2]
[423111999,1779858631000,-500.0,7.818e-05,2]
[423112001,1779858631000,-500.0,7.818e-05,2]
[423112003,1779858631000,-500.0,7.818e-05,2]
[423112005,1779858631000,-345.43278064,7.818e-05,2]
[423112007,1779858632000,-154.56721936,7.818e-05,2]
[423112009,1779858632000,-304.13660384,7.818e-05,2]
[423112154,1779858638000,-500.0,8.219e-05,2]
[423112144,1779858638000,-540.27,8.219e-05,2]
[423112142,1779858638000,-500.0,8.219e-05,2]
[423112129,1779858638000,-500.0,8.219e-05,2]
[423112127,1779858638000,-500.0,8.219e-05,2]
[423112146,1779858638000,-500.0,8.219e-05,2]
[423112140,1779858638000,-551.8,8.219e-05,2]
[423112132,1779858638000,-500.0,8.219e-05,2]
[423112134,1779858638000,-501.44481767,8.219e-05,2]
[423112148,1779858638000,-642.34022011,8.219e-05,2]
[423112150,1779858638000,-242.35559162,8.219e-05,2]
[423112156,1779858638000,-500.0,8.219e-05,2]
[423112161,1779858638000,-500.0,8.219e-05,2]
[423112170,1779858638000,-500.0,8.219e-05,2]
[423112157,1779858638000,-500.0,8.219e-05,2]
[423112171,1779858638000,-500.0,8.219e-05,2]
[423112164,1779858638000,-500.0,8.219e-05,2]
[423112169,1779858638000,-529.92,8.219e-05,2]
[423112167,1779858638000,-500.0,8.219e-05,2]
[423112166,1779858638000,-501.43589391,8.219e-05,2]
[423112173,1779858638000,-152.07760649,8.219e-05,2]
[423112175,1779858638000,-448.80553449,8.219e-05,2]
[423112179,1779858638000,-500.0,8.219e-05,2]
[423112177,1779858638000,-500.0,8.219e-05,2]
[423112181,1779858638000,-500.0,8.219e-05,2]
[423112138,1779858638000,-500.0,8.219e-05,2]
[423112159,1779858638000,-501.48088009,8.219e-05,2]
[423112136,1779858638000,-500.0,8.219e-05,2]
[423112186,1779858638000,-500.0,8.219e-05,2]
[423112124,1779858638000,-500.0,8.219e-05,2]
[423112060,1779858638000,-244.62552577,7.818e-05,2]
[423112062,1779858638000,-500.0,7.818e-05,2]
[423112064,1779858638000,-143622.20934966,7.819e-05,2]
[423112076,1779858638000,-23655.32990727,7.819e-05,2]
[423112083,1779858638000,-450.91426553,7.912e-05,2]
[423112079,1779858638000,-284983.70238646,7.819e-05,2]
[423112081,1779858638000,-22756.0729417,7.865e-05,2]
[423112084,1779858638000,-1803.65706211,7.912e-05,2]
[423112091,1779858638000,-300.0,8.021e-05,2]
[423112093,1779858638000,-300.0,8.021e-05,2]
[423112087,1779858638000,-4054.17016137,7.912e-05,2]
[423112089,1779858638000,-159.01080543,8e-05,2]
[423112095,1779858638000,-300.0,8.021e-05,2]
[423112097,1779858638000,-300.0,8.021e-05,2]
[423112098,1779858638000,-300.0,8.021e-05,2]
[423112100,1779858638000,-300.0,8.021e-05,2]
[423112102,1779858638000,-300.0,8.021e-05,2]
[423112104,1779858638000,-300.0,8.021e-05,2]
[423112112,1779858638000,-300.0,8.021e-05,2]
[423112114,1779858638000,-300.0,8.021e-05,2]
[423112106,1779858638000,-300.0,8.021e-05,2]
[423112110,1779858638000,-300.0,8.021e-05,2]
[423112116,1779858638000,-300.0,8.021e-05,2]
[423112108,1779858638000,-300.0,8.021e-05,2]
[423112120,1779858638000,-600.0,8.076e-05,2]
[423112118,1779858638000,-300.0,8.021e-05,2]
[423112122,1779858638000,-500.0,8.219e-05,2]
[423112126,1779858638000,-500.0,8.219e-05,2]
[423112185,1779858638000,-500.0,8.219e-05,2]
[423112152,1779858638000,-500.0,8.219e-05,2]
[423112192,1779858638000,-500.0,8.219e-05,2]
[423112245,1779858638000,-500.0,8.219e-05,2]
[423112251,1779858638000,-500.0,8.219e-05,2]
[423112256,1779858638000,-500.0,8.219e-05,2]
[423112252,1779858638000,-500.0,8.219e-05,2]
[423112258,1779858638000,-500.0,8.219e-05,2]
[423112254,1779858638000,-500.0,8.219e-05,2]
[423112249,1779858638000,-500.0,8.219e-05,2]
[423112260,1779858638000,-500.0,8.219e-05,2]
[423112269,1779858638000,-500.0,8.219e-05,2]
[423112263,1779858638000,-500.0,8.219e-05,2]
[423112265,1779858638000,-528.18,8.219e-05,2]
[423112267,1779858638000,-501.08483843,8.219e-05,2]
[423112271,1779858638000,-500.0,8.219e-05,2]
[423112273,1779858638000,-501.75830148,8.219e-05,2]
[423112276,1779858638000,-618.95716574,8.219e-05,2]
[423112278,1779858638000,-500.0,8.219e-05,2]
[423112282,1779858638000,-210.2542146,8.219e-05,2]
[423112287,1779858638000,-500.73718625,8.219e-05,2]
[423112284,1779858638000,-500.0,8.219e-05,2]
[423112280,1779858638000,-500.0,8.219e-05,2]
[423112286,1779858638000,-500.0,8.219e-05,2]
[423112289,1779858638000,-500.0,8.219e-05,2]
[423112275,1779858638000,-500.0,8.219e-05,2]
[423112295,1779858638000,-638.24454365,8.219e-05,2]
[423112296,1779858638000,-500.0,8.219e-05,2]
[423112293,1779858638000,-500.0,8.219e-05,2]
[423112183,1779858638000,-500.0,8.219e-05,2]
[423112247,1779858638000,-500.0,8.219e-05,2]
[423112239,1779858638000,-500.0,8.219e-05,2]
[423112262,1779858638000,-500.0,8.219e-05,2]
[423112233,1779858638000,-500.0,8.219e-05,2]
[423112227,1779858638000,-500.0,8.219e-05,2]
[423112188,1779858638000,-500.0,8.219e-05,2]
[423112196,1779858638000,-500.0,8.219e-05,2]
[423112194,1779858638000,-500.0,8.219e-05,2]
[423112190,1779858638000,-501.33345553,8.219e-05,2]
[423112197,1779858638000,-500.53815171,8.219e-05,2]
[423112199,1779858638000,-500.0,8.219e-05,2]
[423112203,1779858638000,-311.16703478,8.219e-05,2]
[423112210,1779858638000,-500.0,8.219e-05,2]
[423112205,1779858638000,-500.0,8.219e-05,2]
[423112216,1779858638000,-500.0,8.219e-05,2]
[423112208,1779858638000,-416.03302852,8.219e-05,2]
[423112220,1779858638000,-500.0,8.219e-05,2]
[423112214,1779858638000,-500.0,8.219e-05,2]
[423112201,1779858638000,-500.0,8.219e-05,2]
[423112241,1779858638000,-500.88006925,8.219e-05,2]
[423112207,1779858638000,-500.0,8.219e-05,2]
[423112229,1779858638000,-500.0,8.219e-05,2]
[423112231,1779858638000,-239.36626699,8.219e-05,2]
[423112243,1779858638000,-507.21122395,8.219e-05,2]
[423112235,1779858638000,-500.0,8.219e-05,2]
[423112223,1779858638000,-500.0,8.219e-05,2]
[423112237,1779858638000,-500.0,8.219e-05,2]
[423112222,1779858638000,-500.0,8.219e-05,2]
[423112218,1779858638000,-500.0,8.219e-05,2]
[423112212,1779858638000,-500.0,8.219e-05,2]
[423112291,1779858638000,-500.0,8.219e-05,2]
[423112225,1779858638000,-631.22,8.219e-05,2]
[423112378,1779858639000,-500.0,8.219e-05,2]
[423112372,1779858639000,-500.0,8.219e-05,2]
[423112376,1779858639000,-500.0,8.219e-05,2]
[423112374,1779858639000,-500.0,8.219e-05,2]
[423112370,1779858639000,-500.0,8.219e-05,2]
[423112367,1779858639000,-503.16901664,8.219e-05,2]
[423112359,1779858639000,-500.0,8.219e-05,2]
[423112369,1779858639000,-500.0,8.219e-05,2]
[423112363,1779858639000,-500.0,8.219e-05,2]
[423112361,1779858639000,-500.0,8.219e-05,2]
[423112357,1779858639000,-500.0,8.219e-05,2]
[423112380,1779858639000,-500.0,8.219e-05,2]
[423112365,1779858639000,-500.0,8.219e-05,2]
[423112382,1779858639000,-500.0,8.219e-05,2]
[423112405,1779858639000,-151.5,8.219e-05,2]
[423112386,1779858639000,-645.95,8.219e-05,2]
[423112388,1779858639000,-646.99,8.219e-05,2]
[423112393,1779858639000,-500.0,8.219e-05,2]
[423112384,1779858639000,-501.55672137,8.219e-05,2]
[423112395,1779858639000,-500.0,8.219e-05,2]
[423112399,1779858639000,-151.5,8.219e-05,2]
[423112392,1779858639000,-500.0,8.219e-05,2]
[423112397,1779858639000,-501.55618341,8.219e-05,2]
[423112401,1779858639000,-151.5,8.219e-05,2]
[423112415,1779858639000,-500.0,8.219e-05,2]
[423112403,1779858639000,-151.5,8.219e-05,2]
[423112422,1779858639000,-500.0,8.219e-05,2]
[423112355,1779858639000,-500.0,8.219e-05,2]
[423112390,1779858639000,-1000.0,8.219e-05,2]
[423112352,1779858639000,-500.0,8.219e-05,2]
[423112298,1779858639000,-500.0,8.219e-05,2]
[423112354,1779858639000,-500.93920244,8.219e-05,2]
[423112411,1779858639000,-500.0,8.219e-05,2]
[423112302,1779858639000,-500.0,8.219e-05,2]
[423112300,1779858639000,-500.0,8.219e-05,2]
[423112304,1779858639000,-500.0,8.219e-05,2]
[423112306,1779858639000,-500.0,8.219e-05,2]
[423112311,1779858639000,-500.0,8.219e-05,2]
[423112308,1779858639000,-605.32994295,8.219e-05,2]
[423112313,1779858639000,-500.0,8.219e-05,2]
[423112315,1779858639000,-500.0,8.219e-05,2]
[423112309,1779858639000,-500.0,8.219e-05,2]
[423112317,1779858639000,-500.0,8.219e-05,2]
[423112321,1779858639000,-500.0,8.219e-05,2]
[423112323,1779858639000,-500.0,8.219e-05,2]
[423112350,1779858639000,-544.5,8.219e-05,2]
[423112319,1779858639000,-500.0,8.219e-05,2]
[423112339,1779858639000,-500.0,8.219e-05,2]
[423112341,1779858639000,-500.0,8.219e-05,2]
[423112342,1779858639000,-500.0,8.219e-05,2]
[423112340,1779858639000,-226.11845305,8.219e-05,2]
[423112325,1779858639000,-500.0,8.219e-05,2]
[423112335,1779858639000,-500.0,8.219e-05,2]
[423112346,1779858639000,-590.06,8.219e-05,2]
[423112327,1779858639000,-500.48344418,8.219e-05,2]
[423112344,1779858639000,-500.0,8.219e-05,2]
[423112329,1779858639000,-500.0,8.219e-05,2]
[423112348,1779858639000,-500.0,8.219e-05,2]
[423112331,1779858639000,-500.0,8.219e-05,2]
[423112333,1779858639000,-500.0,8.219e-05,2]
[423112337,1779858639000,-500.0,8.219e-05,2]
[423112409,1779858639000,-219.53305884,8.219e-05,2]
[423112413,1779858639000,-500.0,8.219e-05,2]
[423112519,1779858639000,-643.92,8.219e-05,2]
[423112480,1779858639000,-500.0,8.219e-05,2]
[423112485,1779858639000,-1637.93,8.219e-05,2]
[423112487,1779858639000,-502.7447693,8.219e-05,2]
[423112501,1779858639000,-500.0,8.219e-05,2]
[423112497,1779858639000,-500.0,8.219e-05,2]
[423112503,1779858639000,-501.44925211,8.219e-05,2]
[423112505,1779858639000,-500.0,8.219e-05,2]
[423112515,1779858639000,-500.0,8.219e-05,2]
[423112517,1779858639000,-500.0,8.219e-05,2]
[423112507,1779858639000,-500.0,8.219e-05,2]
[423112522,1779858639000,-500.0,8.219e-05,2]
[423112523,1779858639000,-502.94760959,8.219e-05,2]
[423112513,1779858639000,-500.0,8.219e-05,2]
[423112493,1779858639000,-500.0,8.219e-05,2]
[423112511,1779858639000,-500.0,8.219e-05,2]
[423112509,1779858639000,-500.0,8.219e-05,2]
[423112526,1779858639000,-326.0658951,8.273e-05,2]
[423112530,1779858639000,-160.0,8.363e-05,2]
[423112536,1779858639000,-262.37,8.493e-05,2]
[423112534,1779858639000,-500.0,8.493e-05,2]
[423112537,1779858639000,-500.0,8.493e-05,2]
[423112540,1779858639000,-500.0,8.493e-05,2]
[423112542,1779858639000,-500.0,8.493e-05,2]
[423112549,1779858639000,-500.0,8.493e-05,2]
[423112532,1779858639000,-160.0,8.363e-05,2]
[423112544,1779858639000,-501.01671556,8.493e-05,2]
[423112407,1779858639000,-151.5,8.219e-05,2]
[423112547,1779858639000,-500.0,8.493e-05,2]
[423112527,1779858639000,-325.4449185,8.273e-05,2]
[423112483,1779858639000,-500.0,8.219e-05,2]
[423112499,1779858639000,-500.0,8.219e-05,2]
[423112489,1779858639000,-500.0,8.219e-05,2]
[423112429,1779858639000,-500.0,8.219e-05,2]
[423112426,1779858639000,-500.98016963,8.219e-05,2]
[423112424,1779858639000,-500.0,8.219e-05,2]
[423112428,1779858639000,-500.0,8.219e-05,2]
[423112427,1779858639000,-501.36752505,8.219e-05,2]
[423112435,1779858639000,-500.0,8.219e-05,2]
[423112433,1779858639000,-500.0,8.219e-05,2]
[423112431,1779858639000,-500.0,8.219e-05,2]
[423112439,1779858639000,-500.0,8.219e-05,2]
[423112495,1779858639000,-500.0,8.219e-05,2]
[423112441,1779858639000,-500.0,8.219e-05,2]
[423112443,1779858639000,-568.77,8.219e-05,2]
[423112445,1779858639000,-500.0,8.219e-05,2]
[423112448,1779858639000,-500.0,8.219e-05,2]
[423112459,1779858639000,-503.37851436,8.219e-05,2]
[423112437,1779858639000,-500.0,8.219e-05,2]
[423112464,1779858639000,-500.0,8.219e-05,2]
[423112478,1779858639000,-500.0,8.219e-05,2]
[423112461,1779858639000,-500.0,8.219e-05,2]
[423112476,1779858639000,-500.0,8.219e-05,2]
[423112472,1779858639000,-500.0,8.219e-05,2]
[423112474,1779858639000,-500.0,8.219e-05,2]
[423112470,1779858639000,-510.36871016,8.219e-05,2]
[423112491,1779858639000,-500.0,8.219e-05,2]
[423112455,1779858639000,-500.0,8.219e-05,2]
[423112450,1779858639000,-637.5,8.219e-05,2]
[423112452,1779858639000,-500.0,8.219e-05,2]
[423112468,1779858639000,-533.29,8.219e-05,2]
[423112466,1779858639000,-500.0,8.219e-05,2]
[423112457,1779858639000,-500.0,8.219e-05,2]
[423112625,1779858640000,-500.0,8.493e-05,2]
[423112635,1779858640000,-177.58,8.493e-05,2]
[423112621,1779858640000,-500.0,8.493e-05,2]
[423112626,1779858640000,-500.0,8.493e-05,2]
[423112623,1779858640000,-500.0,8.493e-05,2]
[423112600,1779858640000,-500.0,8.493e-05,2]
[423112615,1779858640000,-502.24305754,8.493e-05,2]
[423112617,1779858640000,-500.0,8.493e-05,2]
[423112605,1779858640000,-500.0,8.493e-05,2]
[423112606,1779858640000,-500.0,8.493e-05,2]
[423112598,1779858640000,-501.54004828,8.493e-05,2]
[423112630,1779858640000,-547.5,8.493e-05,2]
[423112619,1779858640000,-523.8,8.493e-05,2]
[423112632,1779858640000,-502.14020622,8.493e-05,2]
[423112662,1779858640000,-500.0,8.493e-05,2]
[423112628,1779858640000,-500.0,8.493e-05,2]
[423112637,1779858640000,-542.6992875,8.493e-05,2]
[423112641,1779858640000,-500.0,8.493e-05,2]
[423112639,1779858640000,-500.0,8.493e-05,2]
[423112642,1779858640000,-500.0,8.493e-05,2]
[423112653,1779858640000,-503.04476769,8.493e-05,2]
[423112649,1779858640000,-500.0,8.493e-05,2]
[423112654,1779858640000,-500.0,8.493e-05,2]
[423112656,1779858640000,-501.1750264,8.493e-05,2]
[423112648,1779858640000,-182.33,8.493e-05,2]
[423112646,1779858640000,-500.0,8.493e-05,2]
[423112651,1779858640000,-500.0,8.493e-05,2]
[423112596,1779858640000,-500.0,8.493e-05,2]
[423112634,1779858640000,-503.89247967,8.493e-05,2]
[423112614,1779858640000,-413.87894,8.493e-05,2]
[423112552,1779858640000,-500.0,8.493e-05,2]
[423112603,1779858640000,-368.01,8.493e-05,2]
[423112554,1779858640000,-500.0,8.493e-05,2]
[423112558,1779858640000,-500.0,8.493e-05,2]
[423112562,1779858640000,-500.0,8.493e-05,2]
[423112560,1779858640000,-500.0,8.493e-05,2]
[423112564,1779858640000,-236.79,8.493e-05,2]
[423112565,1779858640000,-458.54,8.493e-05,2]
[423112566,1779858640000,-500.0,8.493e-05,2]
[423112571,1779858640000,-501.55530243,8.493e-05,2]
[423112574,1779858640000,-503.00524962,8.493e-05,2]
[423112570,1779858640000,-230.27147823,8.493e-05,2]
[423112556,1779858640000,-459.84379966,8.493e-05,2]
[423112573,1779858640000,-502.48407316,8.493e-05,2]
[423112568,1779858640000,-455.2154698,8.493e-05,2]
[423112601,1779858640000,-500.0,8.493e-05,2]
[423112577,1779858640000,-500.0,8.493e-05,2]
[423112576,1779858640000,-500.0,8.493e-05,2]
[423112581,1779858640000,-500.0,8.493e-05,2]
[423112579,1779858640000,-500.0,8.493e-05,2]
[423112582,1779858640000,-501.47212941,8.493e-05,2]
[423112586,1779858640000,-505.20018478,8.493e-05,2]
[423112589,1779858640000,-204.27600452,8.493e-05,2]
[423112587,1779858640000,-500.0,8.493e-05,2]
[423112591,1779858640000,-500.0,8.493e-05,2]
[423112593,1779858640000,-501.47667332,8.493e-05,2]
[423112595,1779858640000,-542.27158258,8.493e-05,2]
[423112608,1779858640000,-500.0,8.493e-05,2]
[423112610,1779858640000,-502.9916427,8.493e-05,2]
[423112612,1779858640000,-525.42758282,8.493e-05,2]
[423112584,1779858640000,-500.0,8.493e-05,2]
[423112658,1779858640000,-1637.93,8.493e-05,2]
[423112644,1779858640000,-500.0,8.493e-05,2]
[423112661,1779858640000,-151.48,8.493e-05,2]
[423112718,1779858640000,-500.0,8.767e-05,2]
[423112717,1779858640000,-500.0,8.767e-05,2]
[423112722,1779858640000,-500.0,8.767e-05,2]
[423112720,1779858640000,-500.0,8.767e-05,2]
[423112715,1779858640000,-500.0,8.767e-05,2]
[423112726,1779858640000,-264.17135789,8.767e-05,2]
[423112724,1779858640000,-500.0,8.767e-05,2]
[423112739,1779858640000,-500.0,8.767e-05,2]
[423112741,1779858640000,-500.0,8.767e-05,2]
[423112732,1779858640000,-500.0,8.767e-05,2]
[423112730,1779858640000,-1637.93,8.767e-05,2]
[423112728,1779858640000,-258.29911791,8.767e-05,2]
[423112737,1779858640000,-500.0,8.767e-05,2]
[423112711,1779858640000,-500.0,8.767e-05,2]
[423112735,1779858640000,-500.0,8.767e-05,2]
[423112745,1779858640000,-156.977,8.776e-05,2]
[423112743,1779858640000,-643.92,8.767e-05,2]
[423112751,1779858640000,-500.0,8.96e-05,2]
[423112749,1779858640000,-500.0,8.96e-05,2]
[423112755,1779858640000,-500.0,8.96e-05,2]
[423112763,1779858640000,-500.0,8.96e-05,2]
[423112761,1779858640000,-500.0,8.96e-05,2]
[423112757,1779858640000,-500.0,8.96e-05,2]
[423112753,1779858640000,-500.0,8.96e-05,2]
[423112759,1779858640000,-500.0,8.96e-05,2]
[423112767,1779858640000,-500.0,8.96e-05,2]
[423112765,1779858640000,-500.0,8.96e-05,2]
[423112659,1779858640000,-500.0,8.493e-05,2]
[423112747,1779858640000,-720.0,8.884e-05,2]
[423112713,1779858640000,-500.0,8.767e-05,2]
[423112734,1779858640000,-296.75,8.767e-05,2]
[423112705,1779858640000,-500.0,8.767e-05,2]
[423112707,1779858640000,-599.89052616,8.767e-05,2]
[423112666,1779858640000,-191.62,8.493e-05,2]
[423112675,1779858640000,-163.15814723,8.551e-05,2]
[423112667,1779858640000,-500.0,8.493e-05,2]
[423112664,1779858640000,-500.0,8.493e-05,2]
[423112678,1779858640000,-452.74729416,8.7e-05,2]
[423112680,1779858640000,-500.0,8.767e-05,2]
[423112676,1779858640000,-443.92445085,8.573e-05,2]
[423112665,1779858640000,-262.660725,8.493e-05,2]
[423112669,1779858640000,-643.92,8.493e-05,2]
[423112673,1779858640000,-152.0,8.509e-05,7]
[423112670,1779858640000,-163.35,8.5e-05,2]
[423112668,1779858640000,-500.0,8.493e-05,2]
[423112671,1779858640000,-152.0,8.506e-05,7]
[423112693,1779858640000,-500.0,8.767e-05,2]
[423112663,1779858640000,-500.0,8.493e-05,2]
[423112696,1779858640000,-376.23,8.767e-05,2]
[423112683,1779858640000,-180.86,8.767e-05,2]
[423112685,1779858640000,-348.45,8.767e-05,2]
[423112681,1779858640000,-500.0,8.767e-05,2]
[423112700,1779858640000,-448.88,8.767e-05,2]
[423112687,1779858640000,-599.84611527,8.767e-05,2]
[423112690,1779858640000,-500.0,8.767e-05,2]
[423112698,1779858640000,-500.0,8.767e-05,2]
[423112689,1779858640000,-500.0,8.767e-05,2]
[423112695,1779858640000,-500.0,8.767e-05,2]
[423112702,1779858640000,-500.0,8.767e-05,2]
[423112691,1779858640000,-500.0,8.767e-05,2]
[423112709,1779858640000,-500.0,8.767e-05,2]
[423112703,1779858640000,-389.1384518,8.767e-05,2]
[423112808,1779858641000,-1637.93,9.041e-05,2]
[423112806,1779858641000,-500.0,9.041e-05,2]
[423112825,1779858641000,-234.81113483,9.151e-05,2]
[423112802,1779858641000,-500.0,9.041e-05,2]
[423112804,1779858641000,-500.0,9.041e-05,2]
[423112815,1779858641000,-500.0,9.041e-05,2]
[423112823,1779858641000,-8054.57876998,9.148e-05,2]
[423112813,1779858641000,-500.0,9.041e-05,2]
[423112817,1779858641000,-427.91,9.041e-05,2]
[423112819,1779858641000,-643.92,9.041e-05,2]
[423112812,1779858641000,-519.696954,9.041e-05,2]